bitfinex-derivatives/quotes_SOLF0:USTF0_20250320
["timestamp","ask_amount","ask_price","bid_price","bid_amount"]
[1742437270034,0.05380713,133.68,133.65,27.12800156]
[1742437270233,43.9958458,133.67,133.65,0.04800156]
[1742437270536,7.4821,133.63,133.6,444.516841]
[1742437271035,45.9803458,133.67,133.61,7.4827]
[1742437271238,45.9803458,133.67,133.6,417.436841]
[1742437271431,45.9803458,133.67,133.61,27.08]
[1742437271633,7.4802,133.66,133.62,7.4819]
[1742437271934,0.05092574,133.65,133.63,0.05175643]
[1742437272532,7.53172574,133.65,133.63,0.05175643]
[1742437272733,0.05092574,133.65,133.63,0.05175643]
[1742437273638,7.4811,133.64,133.63,0.05175643]
[1742437273841,0.05092574,133.65,133.63,0.05175643]
[1742437274733,7.53172574,133.65,133.63,0.05175643]
[1742437277937,7.4811,133.64,133.63,0.05175643]
[1742437280437,7.53162574,133.65,133.63,0.05175643]
[1742437280738,0.05092574,133.65,133.63,0.05175643]
[1742437281534,7.4811,133.64,133.63,0.05175643]
[1742437282841,7.4828,133.61,133.58,27.08]
[1742437283040,16.9158458,133.65,133.58,27.08]
[1742437283942,7.53828963,133.63,133.6,0.05469125]
[1742437284333,0.05618963,133.63,133.6,0.05469125]
[1742437284530,7.53798963,133.63,133.6,0.05469125]
[1742437285839,7.4822,133.62,133.6,0.05469125]
[1742437286139,0.05618963,133.63,133.6,0.05469125]
[1742437286444,7.53818963,133.63,133.6,0.05469125]
[1742437287639,0.05618963,133.63,133.6,0.05469125]
[1742437287842,0.05618963,133.63,133.61,27.08]
[1742437288442,0.05618963,133.63,133.62,7.4822]
[1742437291146,336.9158458,133.69,133.62,7.4822]
[1742437291152,336.9158458,133.69,133.62,16.9158458]
[1742437291153,320.0,133.69,133.62,16.9158458]
[1742437291345,87.60640212,133.71,133.63,1.9592]
[1742437291646,11.6302,133.7,133.66,7.4799]
[1742437292041,7.4784,133.69,133.66,7.4799]
[1742437292244,7.53264358,133.69,133.67,0.0512866]
[1742437292446,0.05424358,133.69,133.67,0.0512866]
[1742437292744,7.4789,133.68,133.67,0.0512866]
[1742437293643,7.4805,133.65,133.64,27.08]
[1742437293847,4.152,133.7,133.57,5.98]
[1742437293848,16.9158458,133.67,133.62,27.08]
[1742437294748,7.4817,133.63,133.62,27.08]
[1742437295546,0.05606569,133.66,133.62,27.08]
[1742437295943,7.4814,133.64,133.62,27.08]
[1742437299549,7.4807,133.65,133.62,27.08]
[1742437299749,0.05606569,133.66,133.62,27.08]
[1742437299952,0.05606569,133.66,133.63,7.4815]
[1742437300550,0.05606569,133.66,133.64,7.4811]
[1742437301049,0.05606569,133.66,133.62,27.08]
[1742437301252,0.05606569,133.66,133.62,34.5621]
[1742437301447,0.05606569,133.66,133.62,27.08]
[1742437301655,7.4822,133.62,133.61,0.05237154]
[1742437303259,7.4847,133.58,133.57,27.08]
[1742437303450,7.4847,133.58,133.56,27.08]
[1742437304557,0.05533722,133.58,133.56,27.13207347]
[1742437307353,7.53983722,133.58,133.56,27.13207347]
[1742437309056,7.485,133.57,133.56,0.05207347]
[1742437314561,7.4861,133.56,133.53,27.08]
[1742437315055,18.3382236,133.56,133.53,27.08]
[1742437315659,7.4862,133.55,133.51,18.3402236]
[1742437315856,7.4862,133.55,133.53,0.04972955]
[1742437316058,0.05251394,133.54,133.53,0.04972955]
[1742437317555,7.53921394,133.54,133.53,0.04972955]
[1742437317757,18.39133754,133.54,133.53,0.04972955]
[1742437318364,10.90463754,133.54,133.53,0.04972955]
[1742437319363,18.39133754,133.54,133.53,0.04972955]
[1742437320865,7.4881,133.52,133.49,37.9321236]
[1742437321160,10.8521236,133.52,133.48,10.8521236]
[1742437321369,18.3414236,133.5,133.46,10.8521236]
[1742437321660,10.8521236,133.5,133.44,12.9651236]
[1742437321860,18.3423236,133.48,133.44,18.3441236]
[1742437322053,18.39194361,133.48,133.46,0.05088716]
[1742437323365,10.90174361,133.48,133.46,0.05088716]
[1742437323562,0.04962001,133.48,133.46,7.54198716]
[1742437324568,0.04962001,133.48,133.47,7.4906]
[1742437324767,0.04962001,133.48,133.46,10.90301076]
[1742437326167,0.04962001,133.48,133.47,7.4906]
[1742437326368,0.04962001,133.48,133.46,10.90301076]
[1742437326667,0.04962001,133.48,133.46,0.05088716]
[1742437327367,0.04962001,133.48,133.46,7.54168716]
[1742437328867,0.04962001,133.48,133.47,7.4906]
[1742437329168,0.04962001,133.48,133.46,0.05088716]
[1742437329367,0.04962001,133.48,133.46,7.54178716]
[1742437329570,0.04962001,133.48,133.46,0.05088716]
[1742437330072,0.04962001,133.48,133.47,7.4906]
[1742437331273,0.04962001,133.48,133.47,34.5906]
[1742437332367,0.04962001,133.48,133.47,45.4427236]
[1742437332971,0.04962001,133.48,133.47,37.9521236]
[1742437333367,7.4871,133.54,133.47,37.9521236]
[1742437333579,10.8521236,133.52,133.48,27.1]
[1742437334661,0.05160365,133.51,133.49,0.05612799]
[1742437335063,0.05160365,133.51,133.49,10.90825159]
[1742437335264,0.05160365,133.51,133.49,12.92085159]
[1742437335670,0.05160365,133.51,133.5,7.4889]
[1742437335872,10.8521236,133.56,133.49,12.92085159]
[1742437336072,10.8521236,133.56,133.51,10.8521236]
[1742437336274,18.3382236,133.56,133.52,27.1]
[1742437336873,0.04823316,133.55,133.53,0.05134341]
[1742437338566,7.53443316,133.55,133.53,0.05134341]
[1742437340075,7.4867,133.54,133.53,0.05134341]
[1742437340272,18.3388236,133.54,133.53,0.05134341]
[1742437340572,10.8521236,133.54,133.49,27.1]
[1742437341578,7.4881,133.52,133.5,0.05545316]
[1742437342873,7.4884,133.51,133.5,0.05545316]
[1742437344173,10.90153954,133.52,133.45,27.1]
[1742437344174,7.4905,133.48,133.45,27.1]
[1742437344382,10.8521236,133.5,133.45,37.9521236]
[1742437344877,10.8521236,133.5,133.45,10.8521236]
[1742437345278,7.4904,133.48,133.45,10.8521236]
[1742437345482,7.4904,133.48,133.46,0.05199864]
[1742437345779,0.05121088,133.49,133.46,0.05199864]
[1742437348482,7.4906,133.47,133.46,0.05199864]
[1742437349283,7.4902,133.48,133.46,0.05199864]
[1742437351384,0.05121088,133.49,133.46,0.05199864]
[1742437351677,0.05121088,133.49,133.47,37.9521236]
[1742437351981,0.05121088,133.49,133.47,45.4424236]
[1742437352174,0.05121088,133.49,133.47,37.9521236]
[1742437353079,0.05121088,133.49,133.47,27.1]
[1742437353279,7.4901,133.48,133.46,0.05199864]
[1742437353484,0.05121088,133.49,133.46,0.05199864]
[1742437353686,0.05121088,133.49,133.47,10.8521236]
[1742437354084,0.05121088,133.49,133.47,18.3425236]
[1742437354686,0.05121088,133.49,133.48,7.4901]
[1742437354886,0.05121088,133.49,133.46,10.90412224]
[1742437355184,0.05121088,133.49,133.46,0.05199864]
[1742437355386,7.4906,133.47,133.46,0.05199864]
[1742437355985,7.4903,133.48,133.46,0.05199864]
[1742437356184,0.05121088,133.49,133.46,0.05199864]
[1742437356581,7.54111088,133.49,133.46,0.05199864]
[1742437356888,0.05121088,133.49,133.47,10.8521236]
[1742437357187,0.05121088,133.49,133.48,27.1]
[1742437358387,269.2521236,133.54,133.48,29.0309]
[1742437358591,10.8521236,133.54,133.49,10.8521236]
[1742437358991,7.4881,133.52,133.49,18.3415236]
[1742437359290,7.4881,133.52,133.49,7.4894]
[1742437359492,7.53604701,133.52,133.49,7.54317694]
[1742437359792,0.04794701,133.52,133.49,0.05377694]
[1742437360288,16.96130939,133.51,133.43,27.1]
[1742437360586,27.1,133.5,133.43,27.1]
[1742437361089,7.4908,133.47,133.43,27.1]
[1742437361293,27.1,133.5,133.43,27.1]
[1742437361489,0.05620511,133.46,133.44,17.01577974]
[1742437361689,258.44,133.53,133.46,7.4911]
[1742437361888,32.71684945,133.54,133.47,27.1]
[1742437362083,7.4879,133.52,133.47,27.1]
[1742437362492,31.0938,133.56,133.47,27.1]
[1742437362893,0.05246188,133.53,133.5,0.0517874]
[1742437363188,0.05246188,133.53,133.5,27.1517874]
[1742437363594,44.11377127,133.53,133.5,0.0517874]
[1742437363793,16.96130939,133.51,133.42,16.96130939]
[1742437363984,16.96130939,133.51,133.43,27.1]
[1742437364384,44.06130939,133.51,133.43,27.1]
[1742437364592,7.4907,133.47,133.43,27.1]
[1742437365195,0.0478189,133.46,133.44,0.0521717]
[1742437366498,7.5390189,133.46,133.44,0.0521717]
[1742437368691,0.0478189,133.46,133.44,0.0521717]
[1742437376101,7.4917,133.45,133.44,0.0521717]
[1742437376301,6.2810189,133.46,133.41,27.1]
[1742437376495,6.2332,133.46,133.4,27.1]
[1742437377498,0.0504308,133.44,133.42,0.04875037]
[1742437377706,7.5431308,133.44,133.42,0.04875037]
[1742437377908,0.0504308,133.44,133.42,0.04875037]
[1742437379108,10.92213804,133.44,133.42,0.04875037]
[1742437381302,18.41463804,133.44,133.42,0.04875037]
[1742437381700,7.4929,133.43,133.42,0.04875037]
[1742437382100,10.92213804,133.44,133.38,27.1]
[1742437382307,10.87170724,133.41,133.38,27.1]
[1742437382505,18.36600724,133.41,133.38,27.1]
[1742437383009,18.36570724,133.41,133.38,27.1]
[1742437383213,18.36570724,133.41,133.38,27.15546037]
[1742437383214,7.54338921,133.41,133.38,27.15546037]
[1742437384011,0.04938921,133.41,133.38,34.65116037]
[1742437386211,0.04938921,133.41,133.38,27.15546037]
[1742437386412,0.04938921,133.41,133.38,44.15000105]
[1742437386812,0.04938921,133.41,133.4,7.4946]
[1742437394320,0.04938921,133.41,133.39,7.495]
[1742437394921,0.04938921,133.41,133.4,7.4946]
[1742437397125,0.04938921,133.41,133.39,7.4949]
[1742437398618,0.04938921,133.41,133.4,7.4946]
[1742437403326,0.04938921,133.41,133.39,7.4951]
[1742437403527,0.04938921,133.41,133.38,27.15546037]
[1742437403729,0.04938921,133.41,133.4,7.4946]
[1742437403923,44.09454068,133.49,133.4,16.99454068]
[1742437404117,44.09454068,133.49,133.41,27.1]
[1742437404326,7.491,133.47,133.44,7.492]
[1742437405027,7.54848008,133.47,133.44,7.5423225]
[1742437405821,0.05748008,133.47,133.44,10.9167039]
[1742437406027,10.92386148,133.47,133.44,27.1503225]
[1742437406225,0.05748008,133.47,133.44,34.6422225]
[1742437406425,41.53615632,133.51,133.46,10.8663814]
[1742437406625,41.53615632,133.51,133.5,10.8663814]
[1742437406827,41.53615632,133.51,133.5,37.9663814]
[1742437408534,41.53615632,133.51,133.5,45.4552814]
[1742437409136,0.05379494,133.52,133.51,7.4884]
[1742437410035,10.8663814,133.58,133.5,37.9663814]
[1742437410230,10.38403908,133.59,133.54,10.8663814]
[1742437410430,7.4851,133.57,133.55,27.1]
[1742437411234,7.4856,133.56,133.55,0.05430593]
[1742437412126,7.5365057,133.57,133.55,0.05430593]
[1742437413737,7.4856,133.56,133.55,0.05430593]
[1742437429946,34.5656,133.56,133.55,0.05430593]
[1742437435452,7.4856,133.56,133.55,0.05430593]
[1742437436558,0.0513057,133.57,133.55,0.05430593]
[1742437436752,0.0513057,133.57,133.55,7.54040593]
[1742437437252,0.0513057,133.57,133.56,10.85167411]
[1742437437456,0.0513057,133.57,133.56,18.33727411]
[1742437437859,0.0513057,133.57,133.56,10.85167411]
[1742437438057,0.0513057,133.57,133.56,18.33727411]
[1742437438551,7.4836,133.6,133.57,7.4847]
[1742437438756,7.4836,133.6,133.58,10.85167411]
[1742437438954,12.39713908,133.64,133.58,10.85167411]
[1742437439155,7.482,133.63,133.6,10.85167411]
[1742437439458,41.56273908,133.65,133.6,10.85167411]
[1742437439655,10.85167411,133.64,133.6,10.85167411]
[1742437439856,7.4826,133.62,133.61,0.05740511]
[1742437443460,18.33427411,133.62,133.61,0.05740511]
[1742437449361,27.10992894,133.64,133.61,0.05740511]
[1742437450062,7.482,133.63,133.61,0.05740511]
[1742437451257,7.4822,133.62,133.61,0.05740511]
[1742437451469,27.10992894,133.64,133.61,0.05740511]
[1742437451963,7.4819,133.63,133.61,0.05740511]
[1742437452163,27.10992894,133.64,133.61,0.05740511]
[1742437452768,34.59132894,133.64,133.61,0.05740511]
[1742437453263,0.04992894,133.64,133.61,0.05740511]
[1742437454160,7.4822,133.62,133.61,0.05740511]
[1742437456366,7.4819,133.63,133.61,0.05740511]
[1742437456769,10.90160305,133.64,133.61,0.05740511]
[1742437457669,7.4822,133.62,133.61,0.05740511]
[1742437459570,7.4819,133.63,133.61,0.05740511]
[1742437460972,7.4822,133.62,133.61,0.05740511]
[1742437461668,0.04992894,133.64,133.61,27.11740511]
[1742437461873,0.04992894,133.64,133.63,10.85167411]
[1742437465873,0.04992894,133.64,133.61,45.45167922]
[1742437466071,0.04992894,133.64,133.61,37.96907922]
[1742437466673,7.53132894,133.64,133.61,37.96907922]
[1742437466869,0.04992894,133.64,133.61,27.11740511]
[1742437467771,7.4822,133.62,133.61,0.05740511]
[1742437470181,7.4845,133.58,133.56,37.91167411]
[1742437470768,7.485,133.57,133.56,10.85167411]
[1742437470967,7.485,133.57,133.56,27.06]
[1742437471175,7.485,133.57,133.55,39.84857411]
[1742437471482,7.485,133.57,133.55,37.9613602]
[1742437471678,7.4856,133.56,133.55,27.10968609]
[1742437473281,7.4853,133.57,133.55,27.10968609]
[1742437475087,7.4856,133.56,133.55,27.10968609]
[1742437475381,7.4856,133.56,133.55,0.04968609]
[1742437475779,37.91167411,133.57,133.5,1.9949]
[1742437475780,37.91167411,133.57,133.5,27.06]
[1742437475981,10.85167411,133.53,133.5,27.06]
[1742437476172,10.85167411,133.53,133.49,10.85167411]
[1742437476377,7.4887,133.51,133.48,27.06]
[1742437476582,10.85167411,133.53,133.48,27.06]
[1742437476781,7.4885,133.51,133.48,27.06]
[1742437476982,7.4885,133.51,133.49,0.052769]
[1742437477679,7.54059699,133.52,133.49,0.052769]
[1742437477986,0.05259699,133.52,133.49,10.90444311]
[1742437478382,0.05259699,133.52,133.49,18.39384311]
[1742437478578,0.05259699,133.52,133.49,10.90444311]
[1742437478783,0.05259699,133.52,133.51,18.34007411]
[1742437478985,0.05259699,133.52,133.51,45.40007411]
[1742437480191,0.05259699,133.52,133.51,37.91167411]
[1742437480382,0.05259699,133.52,133.51,27.06]
[1742437481585,7.54039699,133.52,133.5,10.85167411]
[1742437482689,7.4884,133.51,133.49,27.112769]
[1742437482885,0.05259699,133.52,133.49,27.112769]
[1742437484489,7.54059699,133.52,133.49,27.112769]
[1742437484787,0.05259699,133.52,133.49,27.112769]
[1742437485284,7.4885,133.51,133.49,27.112769]
[1742437485589,0.05259699,133.52,133.49,27.112769]
[1742437487492,7.4885,133.51,133.49,27.112769]
[1742437487791,0.05259699,133.52,133.49,27.112769]
[1742437488595,0.05259699,133.52,133.49,34.602169]
[1742437489492,0.05259699,133.52,133.49,51.56534055]
[1742437489996,0.05259699,133.52,133.49,44.07594055]
[1742437490596,7.4854,133.57,133.52,7.4873]
[1742437490893,27.06,133.59,133.53,27.06]
[1742437491299,7.4859,133.56,133.53,27.06]
[1742437491595,7.53553843,133.56,133.53,27.11122497]
[1742437492596,7.53553843,133.56,133.53,34.59842497]
[1742437493795,7.4862,133.55,133.53,27.11122497]
[1742437496390,7.4867,133.55,133.53,27.11122497]
[1742437499090,0.04963843,133.56,133.53,27.11122497]
[1742437499394,0.04963843,133.56,133.53,44.07439652]
[1742437500199,0.04963843,133.56,133.54,7.4866]
[1742437500390,0.04963843,133.56,133.53,44.07439652]
[1742437500702,0.04963843,133.56,133.53,27.11122497]
[1742437501199,0.04963843,133.56,133.53,0.05122497]
[1742437501601,7.4861,133.55,133.53,0.05122497]
[1742437502404,7.4867,133.54,133.53,0.05122497]
[1742437506608,7.4863,133.55,133.53,0.05122497]
[1742437507699,7.4867,133.54,133.53,0.05122497]
[1742437509100,7.4864,133.55,133.53,0.05122497]
[1742437510807,7.53543843,133.56,133.53,0.05122497]
[1742437511612,7.53543843,133.56,133.53,7.53842497]
[1742437512007,0.04963843,133.56,133.54,10.85051501]
[1742437513415,7.53533843,133.56,133.54,10.85051501]
[1742437517111,0.04963843,133.56,133.54,10.85051501]
[1742437519313,7.53533843,133.56,133.54,10.85051501]
[1742437520020,7.4861,133.55,133.54,10.85051501]
[1742437526921,7.53543843,133.56,133.54,10.85051501]
[1742437529335,0.04963843,133.56,133.55,27.06]
[1742437530431,0.04963843,133.56,133.55,34.5461]
[1742437534247,7.4836,133.6,133.57,7.4848]
[1742437534542,7.483,133.61,133.58,27.06]
[1742437535044,21.23455409,133.62,133.58,27.06]
[1742437535546,0.05056619,133.61,133.59,0.0543626]
[1742437536044,7.4833,133.6,133.59,0.0543626]
[1742437537547,0.05056619,133.61,133.59,0.0543626]
[1742437537845,0.05056619,133.61,133.6,10.85051501]
[1742437539542,0.05056619,133.61,133.6,18.33381501]
[1742437539749,0.05056619,133.61,133.6,10.85051501]
[1742437541246,7.4818,133.63,133.6,10.85051501]
[1742437541448,269.15051501,133.67,133.62,10.85051501]
[1742437542148,7.4814,133.64,133.62,10.85051501]
[1742437542348,7.4814,133.64,133.63,0.04989706]
[1742437550256,20.31651501,133.64,133.63,0.04989706]
[1742437552854,7.4833,133.6,133.59,27.04]
[1742437553554,7.483,133.61,133.59,27.04]
[1742437553957,7.53897658,133.61,133.59,27.08991148]
[1742437554458,0.05597658,133.61,133.6,10.85051501]
[1742437556966,0.05597658,133.61,133.6,18.33381501]
[1742437557365,0.05597658,133.61,133.6,10.85051501]
[1742437559860,0.05597658,133.61,133.6,18.33381501]
[1742437563468,14.98231501,133.68,133.6,10.85051501]
[1742437563669,14.98231501,133.68,133.63,10.85051501]
[1742437563972,7.4798,133.67,133.64,27.04]
[1742437564572,7.52832933,133.67,133.64,27.08873006]
[1742437565969,0.04852933,133.67,133.64,27.08873006]
[1742437566169,0.04852933,133.67,133.64,0.04873006]
[1742437566367,7.4805,133.65,133.64,0.04873006]
[1742437572773,0.04852933,133.67,133.64,10.89924507]
[1742437572976,0.04852933,133.67,133.66,10.85051501]
[1742437573172,0.04852933,133.67,133.66,18.33051501]
[1742437573374,41.53615632,133.69,133.66,10.85051501]
[1742437573574,41.53615632,133.69,133.68,10.85051501]
[1742437573775,41.53615632,133.69,133.68,27.04]
[1742437574077,114.22442989,133.69,133.68,27.04]
[1742437574376,125.0749449,133.69,133.65,27.04]
[1742437574574,114.22442989,133.69,133.67,0.0501003]
[1742437574774,121.70302989,133.69,133.66,10.85051501]
[1742437574974,114.27274432,133.69,133.67,0.05313613]
[1742437577177,0.04831443,133.69,133.67,0.05313613]
[1742437577679,7.52671443,133.69,133.67,0.05313613]
[1742437578580,7.4789,133.68,133.67,0.05313613]
[1742437580584,18.32941501,133.68,133.67,0.05313613]
[1742437580783,20.35671501,133.68,133.67,0.05313613]
[1742437581384,51.51681501,133.68,133.67,0.05313613]
[1742437582384,9.5062,133.68,133.67,0.05313613]
[1742437583284,7.52681443,133.69,133.67,0.05313613]
[1742437583585,0.04831443,133.69,133.67,0.05313613]
[1742437583987,7.4789,133.68,133.67,0.05313613]
[1742437586589,7.52681443,133.69,133.67,0.05313613]
[1742437586789,7.52681443,133.69,133.67,27.07313613]
[1742437587185,0.04831443,133.69,133.67,27.07313613]
[1742437589985,0.04831443,133.69,133.67,34.55213613]
[1742437590591,0.04831443,133.69,133.68,18.32941501]
[1742437590987,0.04831443,133.69,133.68,10.85051501]
[1742437592785,0.04831443,133.69,133.67,27.07313613]
[1742437594398,18.32941501,133.68,133.67,0.05313613]
[1742437594894,7.4789,133.68,133.67,0.05313613]
[1742437602602,7.52681443,133.69,133.67,0.05313613]
[1742437602799,0.04831443,133.69,133.67,10.90365114]
[1742437603407,7.52691443,133.69,133.67,10.90365114]
[1742437604004,0.04831443,133.69,133.67,10.90365114]
[1742437604206,0.04831443,133.69,133.67,18.38305114]
[1742437604702,0.04831443,133.69,133.67,10.90365114]
[1742437604903,0.04831443,133.69,133.68,7.4789]
[1742437605103,0.04831443,133.69,133.68,34.4989]
[1742437605304,287.2428,133.75,133.68,27.02]
[1742437605500,2.0628,133.75,133.71,10.85051501]
[1742437605808,52.39389699,133.76,133.71,37.87051501]
[1742437606303,7.4759,133.74,133.71,37.87051501]
[1742437606511,7.4759,133.74,133.72,0.05136697]
[1742437607707,7.4761,133.73,133.72,0.05136697]
[1742437607909,10.44260518,133.75,133.72,0.05136697]
[1742437609209,10.85051501,133.74,133.72,0.05136697]
[1742437609712,7.4761,133.73,133.72,0.05136697]
[1742437611915,9.5135,133.73,133.72,0.05136697]
[1742437613718,7.4761,133.73,133.72,0.05136697]
[1742437622115,7.4756,133.74,133.72,0.05136697]
[1742437623921,7.4761,133.73,133.72,0.05136697]
[1742437624416,0.05134044,133.75,133.72,0.05136697]
[1742437624825,0.05134044,133.75,133.73,10.85051501]
[1742437625021,0.05134044,133.75,133.74,7.4755]
[1742437626229,0.05134044,133.75,133.74,34.4755]
[1742437627525,10.39126474,133.77,133.75,7.4747]
[1742437627724,10.39126474,133.77,133.75,18.32521501]
[1742437628220,10.39126474,133.77,133.74,34.4753]
[1742437628525,10.39126474,133.77,133.74,45.32581501]
[1742437628823,17.91512672,133.77,133.74,37.85051501]
[1742437629127,0.04996198,133.77,133.74,37.85051501]
[1742437631526,0.04996198,133.77,133.76,10.85051501]
[1742437631724,0.04996198,133.77,133.76,18.32491501]
[1742437632519,41.54338198,133.83,133.76,10.85051501]
[1742437632722,41.54338198,133.83,133.79,10.85051501]
[1742437633127,10.85051501,133.82,133.77,37.85051501]
[1742437633628,7.4725,133.8,133.78,0.05639122]
[1742437633926,10.85051501,133.8,133.78,0.05639122]
[1742437634526,7.4727,133.79,133.78,0.05639122]
[1742437636325,10.85051501,133.8,133.73,37.85051501]
[1742437636521,10.85051501,133.78,133.73,37.85051501]
[1742437636722,37.85051501,133.78,133.73,37.85051501]
[1742437636922,10.85051501,133.76,133.72,27.0]
[1742437637530,7.4764,133.73,133.72,27.0]
[1742437638728,0.05186021,133.75,133.72,27.0]
[1742437639133,7.52716021,133.75,133.72,27.0]
[1742437639526,7.52716021,133.75,133.72,34.4765]
[1742437639831,0.05186021,133.75,133.73,10.85051501]
[1742437641536,7.52696021,133.75,133.73,10.85051501]
[1742437641730,0.05186021,133.75,133.72,27.0]
[1742437641934,7.4759,133.74,133.72,27.0]
[1742437643931,7.52706021,133.75,133.72,27.0]
[1742437644131,7.52706021,133.75,133.73,10.85051501]
[1742437644132,0.05186021,133.75,133.73,10.85051501]
[1742437644636,0.05186021,133.75,133.74,7.4755]
[1742437648035,0.05186021,133.75,133.73,18.32641501]
[1742437648238,0.05186021,133.75,133.73,27.0]
[1742437648427,0.05186021,133.75,133.72,10.85051501]
[1742437649438,7.4759,133.74,133.72,10.85051501]
[1742437649634,0.05186021,133.75,133.72,10.85051501]
[1742437650435,7.4758,133.74,133.72,10.85051501]
[1742437651437,7.52696021,133.75,133.72,18.32711501]
[1742437651838,0.05186021,133.75,133.72,18.32711501]
[1742437652041,0.05186021,133.75,133.74,10.85051501]
[1742437652343,0.05186021,133.75,133.74,37.85051501]
[1742437653341,0.05186021,133.75,133.74,45.32601501]
[1742437654040,0.05186021,133.75,133.74,37.85051501]
[1742437654737,7.52676021,133.75,133.74,37.85051501]
[1742437654938,7.52676021,133.75,133.74,27.0]
[1742437656141,0.05186021,133.75,133.74,27.0]
[1742437656844,0.05186021,133.75,133.74,37.85051501]
[1742437658442,0.05186021,133.75,133.74,45.32601501]
[1742437662238,0.05186021,133.75,133.74,34.4755]
[1742437662432,0.05186021,133.75,133.72,37.85051501]
[1742437663036,7.4758,133.74,133.72,37.85051501]
[1742437663442,0.05186021,133.75,133.72,37.85051501]
[1742437664142,7.4755,133.74,133.72,37.85051501]
[1742437665045,7.52696021,133.75,133.72,37.85051501]
[1742437665639,7.52696021,133.75,133.72,45.32711501]
[1742437665836,0.05186021,133.75,133.72,37.85051501]
[1742437666042,0.05186021,133.75,133.74,10.85051501]
[1742437667045,0.05186021,133.75,133.74,18.32601501]
[1742437667237,41.54338198,133.79,133.74,10.85051501]
[1742437667440,41.54338198,133.79,133.77,10.85051501]
[1742437667736,41.54338198,133.79,133.75,37.85051501]
[1742437668445,0.05118266,133.78,133.76,0.05215726]
[1742437669042,0.05118266,133.78,133.76,7.52645726]
[1742437670545,7.52448266,133.78,133.76,0.05215726]
[1742437673750,0.05118266,133.78,133.76,7.52645726]
[1742437673951,0.05118266,133.78,133.77,10.85051501]
[1742437674349,41.54338198,133.82,133.77,10.85051501]
[1742437674545,41.54338198,133.82,133.8,10.85051501]
[1742437674747,41.54338198,133.82,133.8,18.32231501]
[1742437675652,41.59314467,133.82,133.8,10.90065148]
[1742437676652,0.04976269,133.82,133.8,10.90065148]
[1742437676852,0.04976269,133.82,133.8,18.37275148]
[1742437677054,0.04976269,133.82,133.8,10.90065148]
[1742437678254,0.04976269,133.82,133.8,18.37245148]
[1742437678657,0.04976269,133.82,133.8,10.90065148]
[1742437680158,10.85051501,133.81,133.8,0.05013647]
[1742437680358,10.85051501,133.81,133.76,37.83051501]
[1742437680759,7.4729,133.79,133.76,37.83051501]
[1742437681358,7.4723,133.8,133.76,45.30481501]
[1742437681558,0.05416033,133.79,133.76,37.87790893]
[1742437682057,7.52716033,133.79,133.76,37.87790893]
[1742437682665,18.32431501,133.77,133.76,0.04739392]
[1742437682870,37.83051501,133.77,133.67,2.0635]
[1742437683159,18.32771501,133.72,133.67,36.5227]
[1742437683966,0.04904598,133.71,133.68,0.05672712]
[1742437684166,0.04904598,133.71,133.68,7.53552712]
[1742437684369,0.04904598,133.71,133.68,18.38604213]
[1742437685062,0.04904598,133.71,133.69,7.4781]
[1742437685565,0.04904598,133.71,133.68,0.05672712]
[1742437685766,0.04904598,133.71,133.68,7.53512712]
[1742437685966,0.04904598,133.71,133.69,16.91227124]
[1742437686167,0.04904598,133.71,133.7,26.98]
[1742437686760,0.04904598,133.71,133.7,34.4577]
[1742437687161,0.04904598,133.71,133.7,26.98]
[1742437687969,0.04904598,133.71,133.7,34.4577]
[1742437694177,0.04904598,133.71,133.7,26.98]
[1742437698286,0.04904598,133.71,133.7,34.4577]
[1742437701289,0.04904598,133.71,133.7,26.98]
[1742437702892,0.04904598,133.71,133.7,34.4577]
[1742437705089,0.04904598,133.71,133.7,26.98]
[1742437705396,0.04904598,133.71,133.68,37.8802568]
[1742437705692,7.52664598,133.71,133.68,45.3590568]
[1742437709393,0.04904598,133.71,133.7,10.82352968]
[1742437710599,0.04904598,133.71,133.7,18.30122968]
[1742437714794,0.04904598,133.71,133.69,18.30162968]
[1742437715390,0.04904598,133.71,133.68,27.05672712]
[1742437715596,0.04904598,133.71,133.68,0.05672712]
[1742437715996,7.4783,133.69,133.68,0.05672712]
[1742437716495,27.04904598,133.71,133.68,0.05672712]
[1742437716699,7.4781,133.7,133.68,0.05672712]
[1742437720399,7.4783,133.69,133.68,0.05672712]
[1742437724004,18.30182968,133.69,133.68,0.05672712]
[1742437724204,10.82352968,133.69,133.63,10.82352968]
[1742437724403,27.0,133.68,133.63,10.82352968]
[1742437724798,7.4803,133.66,133.63,18.30502968]
[1742437725198,27.0,133.68,133.63,18.35283583]
[1742437725395,0.05470266,133.66,133.63,18.35283583]